{"text_format":"3","workbook":"xlsx","n_sheets":1,"sheets":["Bestellliste"],"not_rendered":{"images":7,"defined_names":3},"read":"whole","date_system":"1900"}

{"sheet":"Bestellliste","index":0,"n_rows":226,"n_cols":10,"rows_kept":226,"merged":[[0,0,0,9],[1,6,1,9],[2,5,2,9],[3,5,3,9],[4,5,8,9],[5,1,5,2],[6,1,6,2],[7,1,7,2],[8,1,8,2],[9,9,10,9],[10,0,10,6],[11,3,11,8],[16,0,17,0],[16,1,17,1],[16,2,17,2],[16,3,17,3],[16,4,17,4],[16,5,17,5],[16,7,17,7],[225,2,225,5]]}
["Sortiments- und Bestellliste"]
["Biokäse aus Meisterhand",{"$nulls":5},"Bio-Kontrollstelle: DE-ÖKO-006"]
["Käsegroßhandlung Paul Lerchenmüller",{"$nulls":4},"Unser Betrieb läuft ausschließlich mit Solarstrom"]
["Hohenburg 21 - 83564 Soyen",{"$nulls":4},"Lieferung an:"]
[]
["Tel.:","+49 8071 527 993 33"]
["Fax:","+49 8071 527 993 3"]
["Mobil","+49 179 4963737"]
["Mail:","paul.lerchenmueller@t-online.de"]
[]
[]
[{"$nulls":3},"Gesamtgewicht Ihrer Bestellung:",{"$nulls":5},{"$f":"IF(SUM(gesamtgewicht)=0,\"\",SUM(gesamtgewicht))","v":""}]
[]
[{"$nulls":5},"Versandtage: Montag/Dienstag/Mittwoch "]
[null,null,"KUHKÄSE",null,null,"Bestellungen bitte bis 2 Werktage vorher"]
[]
["Bestell-\nmenge","Artikel-\nnummer","Eigene Reifung und regionale Käse","Erh.","Lab","Art","mind.","Gewicht"]
[{"$nulls":6},"Fett i.Tr."]
[null,31055,"Alpenzeller Mini-Bergkäse (mind. 6 Monate gereift)","RM","TL","HK",50,"4,5 kg",4.5,{"$f":"IF(A19>0,A19*I19,\"\")","v":""}]
[null,32041,"Bergblüte, Bergkäse im Kräuter-Blütenmantel","RM","TL","HK",50,"4,5 kg",4.5,{"$f":"IF(A20>0,A20*I20,\"\")","v":""}]
[null,32111,"Bergschmaus Chili-Pfeffer m. grünem Pfeffer, außen Chili","therm","TL","SK",55,"4,0 kg",4,""]
[null,31045,"Bergschmaus Pfeffer m. grünem Pfeffer, außen schwarzer Pfeffer","therm","TL","SK",55,"4,0 kg",4,""]
[null,33006,"Blümbrie groß mit bunten Gewürzblüten","RM","mikr","WK",50,"1,5 kg",1.5,""]
[null,33033,"Blümbrie klein mit bunten Gewürzblüten","therm","TL","WK",50,"0,7 kg",0.7,""]
[null,32046,"Brotkäse mit Weißwein gewaschen, in Fenchel Koriander Kümmel","therm","TL","HSK",50,"2,3 kg",2.3,""]
[null,33077,"Chili-Rahmkäse im Chilimantel","therm","TL","HK",55,"4,0 kg",4,""]
[null,31021,"Felsenkeller Bergkäse, ca. 8 - 10 Monate gereift","RM","TL","HK",50,"1/4 ~ 7,5 kg",7.5,""]
[null,31067,"Felsenkeller Bergkäse Mini, ca.10 Monate gereift","RM","TL","HK",50,"4,0 kg",4,""]
[null,32345,"Fleur de Muh, mit Kornblume, Ringelblume und Lavendel","RM","mikr","WK",50,"0,35 kg",0.35,""]
[null,32346,"Grand Fleur de Muh, mit Kornblume, Ringelblume und Lavendel","RM","mikr","WK",50,"1,5 kg",1.5,""]
[null,33044,"Grappadoré mit Grappa verfeinert","therm","TL","WK",50,"0,3 kg",0.3,""]
[null,32097,"Heublumenkäse innen Bockshornklee, außen Blüten und Bioheu ","therm","TL","SK",55,"4,0 kg",4,""]
[null,32063,"Hohenburger Schloßkäse Großlochkäse, nussiger Geschmack","RM","TL","SK",50," ab 3,0 kg ",3,""]
[null,32038,"Korsischer Kräuterkäse mit mediterranen Kräutern","therm","TL","HSK",50,"2,3 kg",2.3,""]
[null,33023,"Kreitaberti, mit Rosmarin Thymian Oregano Knoblauch","RM","mikr","WK",50,"0,35 kg",0.35,""]
[null,32061,"Kümmeltilsiter im Kümmel-, Fenchel-, Koriandermantel","therm","TL","SK",50,"4,0 kg",4,""]
[null,32137,"Kürbiskernkäse mit gerösteten u. gehackten Kürbiskernen ","past","mikr","SK",50,"4,0 kg",4,""]
[null,32104,"Nussiger klein mit Bockshornklee, Oregano, Hollerblüten","therm","TL","SK",45,"2,5 kg",2.5,""]
[null,32056,"Nussiger mit Bockshornklee, Oregano, Hollerblüten","therm","TL","SK",45,"5,0 kg",5,""]
[null,33026,"Pfefferbert, Rohmilchweichkäse mit buntem Pfeffer","RM","mikr","WK",50,"0,35 kg",0.35,""]
[null,33035,"Pfefferkäse m. grünem Pfeffer, außen bunter Pfeffer","past","TL","WK",45,"1,5 kg",1.5,""]
[null,32058,"Pfeffersenner mit gewalztem schwarzem Pfeffer","RM","mikr","HSK",50,"2,5 kg",2.5,""]
[null,32050,"Rahmiger Rosenkäse mit Rosenblüten Rosmarin Oregano","RM","TL","SK",55,"5,0 kg",5,""]
[null,32018,"Rosmarin Senner in Rosmarin Oregano Knoblauch","RM","mikr","HSK",50,"2,5 kg",2.5,""]
[null,33031,"Tiroler Bergblume mit bunten Gewürzblüten","past","TL","WK",45,"1,5 kg",1.5,""]
[null,33029,"Tiroler Blüte rot geschmiert mit Holler-, Kornblumen, Lorbeer","past","TL","WK",45,"1,5 kg",1.5,""]
[null,33059,"Tiroler Schwarzer rot/weiß mit Schwarzkümmel","past","TL","WK",45,"1,5 kg",1.5,""]
[null,33069,"Trüffelbrie ","past","TL","WK",45,"1,0 kg",1,""]
[null,32138,"Wilder Kelte Tilsiter mit verschiedenen Kräutern gewürzt","therm","TL","SK",50,"3,0 kg",3,""]
[]
["Bestellmenge","Artikel-\nnummer","Original Parmigiano Reggiano"]
[null,31002,"24-30 Monate  1/8 vakuumverpackt","RM","TL","HK",32,"4,5 kg",4.5,{"$f":"IF(A52>0,A52*I52,\"\")","v":""}]
[null,31003,"24-30 Monate 1/16 vakuumverpackt ","RM","TL","HK",32,"2,25 kg",2.25,""]
[null,31036,"24-30 Monate portioniert 250-350g mit Preis, vakuum.","RM","TL","HK",32,"0,3 kg",0.3,""]
[null,31004,"24-30 Monate portioniert 250-350g vakuum.","RM","TL","HK",32,"0,3 kg",0.3,""]
[]
["Bestellmenge","Artikel-\nnummer","Parmesan"]
[null,31006,"Formaggio Traditionale Emilia Romana ","RM","TL","HK",32,"4,5 kg",4.5,{"$f":"IF(A58>0,A58*I58,\"\")","v":""}]
[]
["Bestellmenge","Artikel-\nnummer","Reine Sennerei Käse a. d. Kaisergebirge/Tirol "]
[null,31011,"Alm-Schnittlauchkäse ","therm","TL","SK",50,"4,0 kg",4,{"$f":"IF(A61>0,A61*I61,\"\")","v":""}]
[null,31009,"Kümmelkäse","therm","TL","SK",50,"4,0 kg",4,""]
[null,32344,"Salbeistange","therm","TL","SK",50,"3,0 kg",3,""]
[null,31010,"Tilsiter natur ","therm","TL","SK",50,"3,0 kg",3,""]
[]
["Bestellmenge","Artikel-\nnummer","Gouda  "," für Halbieren und Vakuumieren 0,50 €/kg"]
[null,32020,"Gouda Bockshornklee, Hooidammer","past","mikr","SK",50,"4,5 kg",4.5,{"$f":"IF(A67>0,A67*I67,\"\")","v":""}]
[null,32012,"Gouda jung, Demeter, Hooidammer","past","mikr","SK",50,"4,5 kg",4.5,""]
[null,32011,"Gouda Karotte, Hooidammer","past","mikr","SK",50,"4,5 kg",4.5,""]
[null,32014,"Gouda mittelalt, Hooidammer","past","mikr","SK",50,"4,0 kg",4,""]
[null,32051,"Gouda Pesto (mit Basilikum), Hooidammer","past","mikr","SK",50," 4,5 kg",4.5,""]
[null,32102,"Gouda Pesto rot, Hooidammer","past","mikr","SK",50,"4,5 kg",4.5,""]
[null,32135,"Gouda Steinpilz Röstzwiebel, Hooidammer","past","mikr","SK",50,"4,5 kg",4.5,""]
[null,32116,"Gouda Trüffel, Hooidammer","past","mikr","SK",50,"4,5 kg",4.5,""]
[null,32036,"Gouda Vintage,  Hooidammer","past","mikr","HK",50,"3,8 kg",3.8,""]
[]
["Bestellmenge","Artikel-\nnummer","Käse aus Belgien"]
[null,32027,"Pas de Bleu","RM","TL","SK",50,"0,9 kg",0.9,{"$f":"IF(A78>0,A78*I78,\"\")","v":""}]
[null,33001,"Petite Fleur, Camembert","RM","mikr","WK",50,"0,3 kg",0.3,""]
[null,33004,"Petite Fleur, Brie","RM","mikr","WK",50,"1,5 kg",1.5,""]
[null,32024,"Herbie mit Kreuzkümmel ","RM","TL","SK",50,"  4,5 kg ",4.4,""]
[null,33008,"Léger de Lathuy, Weichkäse","therm","TL","WK",25,"0,25 kg",0.25,""]
[null,32096,"Le Doré de Lathuy Weichkäse","therm","TL","WK",50,"0,25 kg",0.25,""]
[null,33011,"Cru des Fagnes Brie","therm","TL","WK",50,"0,70 kg",0.7,""]
[]
["Bestellmenge","Artikel-\nnummer","Tirol, Vorarlberg, Schweiz, Frankreich"]
[null,32016,"Alpbachtaler Bierkäse  Magerkäse","RM","TL","SK",15,"4,0 kg",4,{"$f":"IF(A87>0,A87*I87,\"\")","v":""}]
[null,32015,"Bio-Heubauernkäse  Magerkäse","therm.","TL","SK",25,"7,0 kg",7,""]
[null,31017,"Alpbachtaler Bergkäse, Tirol                                     5 - 6 Monate ","RM","TL","HK",50,"1/4 ~ 7,5 kg",7.5,""]
[null,31024,"Bergkäse von Plangger                                              3 - 4 Monate","RM","TL","HK",50,"ab 7,5 kg",7.5,""]
[null,31064,"Bergkäse Sennerei Danzl                                                4 Monate","RM","TL","HK",50,"ab 2,0 kg",2,""]
[null,31042,"Emmentaler aus Hatzenstädt, Tirol                                  4 Monate ","RM","TL","HK",50,"4,0 kg",4,""]
[null,32023,"Rahmkäse von Plangger, Tirol ","therm","TL","SK",55,"4,0 kg",4,""]
[null,31016,"Urfelskäse von Plangger, Tirol                           (früher Rässkäse)","therm","TL","HK",50,"4,0 kg",4,""]
[null,32128,"Bockshornrahmkäse von Plangger, Tirol","therm","TL","SK",55,"4,0 kg",4,""]
[null,32123,"Pfefferhex von Plangger, Tirol","therm","TL","SK",55,"4,0 kg",4,""]
[null,31065,"Bocksberger mit Bockshornklee, Tirol","therm","TL","SK",50,"2,0 kg",2,""]
[null,31047,"Weinberger mit Rotwein, Tirol","therm","TL","SK",50,"2,0 kg",2,""]
[null,32139,"Der Gschmackige","past","TL","SK",50,"6,0 kg",6,""]
[null,32342,"Tomé du Pays, Frankreich","past","TL","WK",45,"3,3 kg",3.3,""]
[null,31061,"Schilcher Extra, Schweiz","therm","TL","SK",50,"6,0 kg",6,""]
[null,31062,"Nufener Bergkäse, Schweiz","therm","TL","SK",48,"5,0 kg",5,""]
[null,31052,"Via Mala Bergkäse, Schweiz","therm","TL","HK",48,"5,0 kg",5,""]
[null,31018,"Walserstolz Bergkäse mind. 10 Mon.  ","RM","TL","HK",50,"4,0 kg",4,""]
[]
["Bestellmenge","Artikel-\nnummer","Käserei Plangger"]
[null,33022,"Korbkäse m.grünem Pfeffer","past","TL","WK",45,"1,5 kg",1.5,{"$f":"IF(A107>0,A107*I107,\"\")","v":""}]
[null,33025,"Korbkäse natur","past","TL","WK",45,"1,5 kg",1.5,""]
[null,33030,"Korbkäse rot","past","TL","WK",45,"1,5 kg",1.5,""]
[null,33021,"Tiroler Rotgold ","past","TL","WK",45,"3,0 kg",3,""]
[]
["Bestellmenge",null,"Italienische Spezialitäten"]
[null,32067,"Fontal aus der Lombardei Flli Tomasoni","past","mikr","SK",50,"ab 3,0 kg",3,{"$f":"IF(A113>0,A113*I113,\"\")","v":""}]
[null,32140,"Scamorza Affumicate, VPE 2 x 0,36 kg","past","mikr","PF",40,"2x 0,36 kg",0.72,""]
[]
[null,null,"ZIEGENKÄSE"]
[]
["Bestellmenge","Artikel-\nnummer","Eigenbehandelte/kreierte Sorten "]
[null,13027,"Blütentorte mit Thymian, Knoblauch und Gewürzblüten","past","mikr","WK",45,"1,5 kg",1.5,{"$f":"IF(A119>0,A119*I119,\"\")","v":""}]
[null,13019,"Goaßgschau, Ziegenbrie in Thymian Knoblauch Wildblüten","past","mikr","WK",45,"1,3 kg",1.3,""]
[null,13078,"Kräutertorte mit Estragon und rosa Pfefferbeeren","past","mikr","WK",45,"1,5 kg",1.5,""]
[null,12021,"Thymian-Zicklein in Honig, Zitronenthymian und Zitrone (Vakuum.)","past","mikr","HSK",50,"0,7 kg",0.7,""]
[null,13016,"Ziege in Wildblüten, Ziegenrolle mit Wildblüten","RM","mikr","WK",45,"0,7 kg",0.7,""]
[null,13044,"Ziegenbrie natur klein Caprice de Chevron","past","TL","WK",45,"0,8 kg",0.8,""]
[null,13081,"Ziegenbrie natur, ca. 1,5 kg ","past","TL","WK",45,"1,5 kg",1.5,""]
[null,13074,"Ziegenbrie gewürzt Karree(Rosmarin Thymian Oregano Knoblauch)","past","TL","WK",45,"1,3 kg",{"v":1.3,"d":"1.30"},""]
[null,13053,"Ziegenbrie gewürzt klein (Rosmarin Thymian Oregano Knoblauch)","past","TL","WK",45,"0,75 kg",0.75,""]
[null,13082,"Ziegenbrie gewürzt,1,5 kg (Rosmarin Thymian Oregano Knoblauch)","past","TL","WK",45,"1,5 kg",1.5,""]
[null,13041,"Ziegencamembert  Caprice de Chevron","past","TL","WK",45,"0,25 kg",0.25,""]
[null,14072,"Ziegenfrischkäsebällchen bunt gewürzt, 12 x 50 g","past","TL","FK",45,"1VPE",0.6,""]
[null,14026,"Ziegenrolle Café de Paris m. Gewürzzubereitung Café d. Paris","RM","mikr","WK",45,"0,7 kg",{"v":0.7,"d":"0.70"},""]
[null,14029,"Ziegenrolle Café de Paris scharf mit Chili","RM","mikr","WK",45,"0,7 kg",0.7,""]
[null,14037,"Ziegenrolle Fenchel-Bruschetta mit Gewürzzubereitung","RM","mikr","WK",45,"0,7 kg",0.7,""]
[null,14036,"Ziegentaler bunt gewürzt, 12 x 50 g","past","TL","FK",45,"1VPE",0.6,""]
[null,14066,"Ziegentaler bunt gewürzt, 6 x 100 g","past","TL","FK",45,"1VPE",0.6,""]
[null,13077,"Ziegenweckerl mit Kornblume, Ringelblume und Lavendel","past","TL","WK",50,"0,28 kg",0.28,""]
[null,13045,"Ziegewürz Z-Camembert mit buntem Pfeffer","past","TL","WK",45,"0,25 kg",0.25,""]
[null,13043,"Ziegewürz Z-Camembert mit Kräutern ","past","TL","WK",45,"0,25 kg",0.25,""]
[]
["Bestellmenge","Artikel-\nnummer","Natürlich vom Höchsten Bioland Hofkäserei"]
[null,14043,"Apfel-Walnuss - Bioland                                       VPE 6 x 145 g","past"," TL","FK",45,"1 VPE",0.87,{"$f":"IF(A141>0,A141*I141,\"\")","v":""}]
[null,14046,"Cashwewnuss Paprika - Bioland                          VPE 6 x 145 g","past"," TL","FK",45,"1 VPE",0.87,""]
[null,14041,"Feige Curry - Bioland                                            VPE 6 x 145 g","past"," TL","FK",45,"1 VPE",0.87,""]
[null,14042,"Mohn-Heidelbeere - Bioland                                 VPE 6 x 145 g","past"," TL","FK",45,"1 VPE",0.87,""]
[null,14045,"Olive Tomate - Bioland                                         VPE 6 x 145 g","past"," TL","FK",45,"1 VPE",0.87,""]
[null,13073,"Ziegenbrie natur, Karree","past"," TL","WK",45,"1,3 kg",1.3,""]
[null,14050,"Ziegenfrischkäse natur 1kg - Bioland","past"," TL","FK",45,"1,0 kg",1,""]
[null,14056,"Ziegenfrischkäsetaler 12 x 50 g","past"," TL","FK",45,"12 x 50 g",0.6,""]
[null,14057,"Ziegenfrischkäsetaler 6 x 100 g","past"," TL","FK",45,"6 x 100 g",0.6,""]
[]
["Bestellmenge","Artikel-\nnummer","Ziegenkäse aus Alpenregionen/Tirol und eigener Reifung"]
[null,12006,"Kräuterziege Rosmarin Thymian Oregano Knoblauch","past","TL","SK",45,"2,2 kg",{"v":2.2,"d":"2.20"},{"$f":"IF(A152>0,A152*I152,\"\")","v":""}]
[null,12005,"Kümmelziege auf Rotschmiere mit gemahlenem Kümmel ","past","TL","SK",45,"2,2 kg",{"v":2.2,"d":"2.20"},""]
[null,12067,"Gepfefferte Ziege mit gewalztem schwarzen Pfeffer","past","TL","SK",46,"2,2 kg",{"v":2.2,"d":"2.20"},""]
[null,12033,"Rauchziege in Buchenholzrauch geräuchert","past","TL","SK",45,"2,2 kg",{"v":2.2,"d":"2.20"},""]
[null,12031,"Rotweinziege","past","TL","SK",45,"2,2 kg",{"v":2.2,"d":"2.20"},""]
[null,12004,"Ziegenbaron Naturrinde","past","TL","SK",45,"2,2 kg",{"v":2.2,"d":"2.20"},""]
[null,12043,"Rohmilchbaron in feiner Rotschmierrinde","RM","mikr","HSK",45,"2,2 kg",{"v":2.2,"d":"2.20"},""]
[null,12038,"Rohmilchbaron gewürzt mit Kräutern","RM","mikr","HSK",45,"2,2 kg",{"v":2.2,"d":"2.20"},""]
[]
["Bestellmenge","Artikel-\nnummer","Ziegengouda von Hooidammer"," für Halbieren und Vakuumieren 0,50 €/kg"]
[null,12030,"Ziegengouda Bockshornklee ","past","mikr","SK",50,"4,5 kg",4.5,{"$f":"IF(A162>0,A162*I162,\"\")","v":""}]
[null,12042,"Ziegengouda Brennnessel Knoblauch","past","mikr","SK",50,"4,5 kg",4.5,""]
[null,12035,"Ziegengouda Mediterrano","past","mikr","SK",50,"4,5 kg",4.5,""]
[null,11002,"Ziegengouda, alt","past","mikr","HK",50,"4,0 kg",4,""]
[null,12001,"Ziegengouda, jung","past","mikr","SK",50,"4,5 kg",4.5,""]
[null,12034,"Ziegengouda, mittelalt  ","past","mikr","SK",50,"4,5 kg",4.5,""]
[null,12063,"Ziegengouda, Trüffel","past","mikr","SK",50,"4,5 kg",4.5,""]
[]
["Bestellmenge","Artikel-\nnummer","Aurora"]
[null,12026,"Ziegenbutterkäse (vakuumiert)","past","mikr","SK",50,"1,5 kg",1.5,{"$f":"IF(A171>0,A171*I171,\"\")","v":""}]
[null,12058,"Ziegenbutterkäse (vakuumiert) mit Bockshornklee","past","mikr","SK",50,"1,5 kg",1.5,""]
[]
["Bestellmenge","Artikel-\nnummer","Ziegenkäse aus Belgien"]
[null,13001,"Merlijn Ziegentorte cremig,topfig, weisser Edelschimmel","past","mikr","WK",45,"1,2 kg",1.2,{"$f":"IF(A175>0,A175*I175,\"\")","v":""}]
[null,13084,"Petite Fleur Chevre Ziegencamembert","past","mikr","WK",45,"0,2 kg",0.2,""]
[null,12065,"Pas de Bleu Chevre - Blauschimmel-Rohmilchkäse","RM","TL","WK",45,"0,9 kg",0.9,""]
[null,12041,"CapriOgand","RM","mikr","SK",45,"4,0 kg",4,""]
[]
["Bestellmenge","Artikel-\nnummer","Saanenhof  Demeter  Ziegenhof"]
[null,13002,"Ziegenrolle natur (vakuumiert)","RM","mikr","WK",45,"0,7 kg",0.7,{"$f":"IF(A181>0,A181*I181,\"\")","v":""}]
[null,12008,"Mini-Ziege Rosmarin,Thymian, Salbei (vakuumiert)","RM","mikr","HSK",45,"1,0 kg",1,""]
[]
[null,null,"SCHAFKÄSE"]
[]
["Bestellmenge","Artikel-\nnummer","Eigene Reifung, Fertigung"]
[null,22027,"Baronesse in Holler-, Lavendelblüte u.Orangenöl","past","mikr","HSK",50,"2,2 kg",2.2,{"$f":"IF(A187>0,A187*I187,\"\")","v":""}]
[null,23005,"Fiore della Pecora mit Thymian Knoblauch Wildblüten","past","TL","WK",50,"1,2 kg",1.2,""]
[null,21034,"Bergschaf","past","TL","SK",50,"2,2 kg",2.2,""]
[null,23027,"Schafblume mit Kornblume, Ringelblume und Lavendel","past","TL","WK",50,"1,2 kg",{"v":1.2,"d":"1.20"},""]
[null,23015,"Schafbrie gewürzt (Rosmarin Thymian Oregano Knoblauch)","past","TL","WK",50,"1,2 kg",1.2,""]
[null,23010,"Schafbrie natur","past","TL","WK",50,"1,2 kg",1.2,""]
[null,23025,"Schafweckerl mit Kornblume, Ringelblume und Lavendel","past","TL","WK",50,"0,28 kg",0.28,""]
[null,22012,"Thymian-Schäfchen in Honig, Zitronenthymian und Zitrone(Vakuum.)","past","mikr","HSK",50,"0,7 kg",0.7,""]
[]
["Bestellmenge","Artikel-\nnummer","Gouda "," für Halbieren und Vakuumieren 0,50 €/kg"]
[null,21005,"Schafgouda jung, Hooidammer","past","mikr","SK",50,"4,5 kg",4.5,{"$f":"IF(A197>0,A197*I197,\"\")","v":""}]
[null,21032,"Schafgouda Rosmarin Thymian, Hooidammer","past","mikr","SK",50,"4,5 kg",4.5,""]
[null,21031,"Schafgouda pikant, Aurora","past","mikr","SK",50,"4,5 kg",4.5,""]
[]
["Bestellmenge","Artikel-\nnummer","Butterkäse Aurora"]
[null,22047,"Schafbutterkäse natur","past","mikr","HSK",50,"1,5 kg",1.5,{"$f":"IF(A202>0,A202*I202,\"\")","v":""}]
[]
["Bestellmenge","Artikel-\nnummer","Pecorino Sarde, Flli. PES Sardinien"]
[null,21023,"Campizzolu, vakuumiert, 120 Tage gereift","past","TL","HK",50,"2,2 kg",2.2,{"$f":"IF(A205>0,A205*I205,\"\")","v":""}]
[null,21024,"Bonaera, vakuumiert, 60 Tage gereift","past","TL","HK",50,"2,2 kg",2.2,""]
[null,21028,"Lochele Pepato (mit schwarzem Pfeffer)","past","TL","HSK",50,"1,5 kg",1.5,""]
[]
["Bestellmenge","Artikel-\nnummer","Ricotta zum Anbraten, Garen mit Spinat o. als Salatzugabe"]
[null,22003,"Naturale vakuumiert - im Frühjahr wieder verfügbar","past","/","HSK",24,"1,0 kg",1,{"$f":"IF(A210>0,A210*I210,\"\")","v":""}]
[null,22039,"Limone vakuumiert - im Frühjahr wieder verfügbar","past","/","HSK",24,"1,0 kg",1,""]
[]
[null,null,"DIVERSE SPEZIALITÄTEN"]
[]
["Bestellmenge","Artikel-\nnummer","Italienische Vorspeisen - Antipasti",{"$nulls":4},"Inhalt"]
[null,40001,"Bio-Artischocken mit Stiel  2 x 1,6 kg",{"$nulls":4},"2 x 1,6 kg ",3.2,{"$f":"IF(A216>0,A216*I216,\"\")","v":""}]
[null,40020,"Bio-Artischocken gegrillt im Glas   1,7 kg",{"$nulls":4},"1,7 kg",1.7,""]
[]
[null,null,"bei  Abnahme von vier Gouda gibt es 10% Nachlass auf Gouda"]
[{"$nulls":3},"Nur möglich bei Einhaltung der Mindestbestellmenge"]
[]
[]
[null,null,"Zeichenerklärung: \n\nRM - Rohmilchkäse, past - pasteurisiert, ther - thermisiert\nmikr - mikrobielles Lab, TL - tierisches Lab, pflanz - pflanzliches Lab"]
[null,null,"FK -  Frischkäse, WK - Weichkäse, HSK - halbfester Schnittkäse, SK - Schnittkäse, HK - Hartkäse, PF - Pasta Filata Käse\n"]
[]
[null,null,"Mit jeder neu herausgegebenen Liste werden die vorhergehenden ungültig!"]